Workbook

Sheet 2.1 INDEX
B1: Pineview West Water Company | E1: Exhibit 2.1
B2: General Rate Case Increase | E2: Docket No.19-2438-01
B3: Index | E3: 2020-10-16
B5: Exhibit No. | C5: Tab Label | D5: Page Title | E5: Page Description | F5: Page No.
B6: 2.1 | C6: INDEX | D6: Index | E6: Index Key for Exhibits | F6: 1
B7: 2.2 | C7: Rates | D7: ='2.2 Rates'!B3 -> Rate Schedule | E7: Shows the rate calculations and corresponding rate schedules.
B8: 2.2.a | C8: Notes | D8: ='2.2.a Notes'!B3 -> Rate Schedule (Notes) | E8: Notes and comments regarding Exhibit 2.2
B9: 2.3 | C9: Expense Allocation | D9: ='2.3 Expense Allocation'!B3 -> Allocation of Annual Expenses and Annual Rates | E9: Categorizes expenses as either Fixed or Variable expenses. | F9: 2
B10: 2.3.a | C10: Notes | D10: ='2.3.a Notes'!B3 -> Expense Allocation (Notes) | E10: Notes and comments regarding Exhibit 2.3 | F10: 4
B11: 2.4 | C11: Adj. Expense | D11: ='2.4 Adj. Expenses'!B3 -> Adjustments to Expenses | E11: Shows the adjustments recommended by the Division to the expense amounts on the Company’s Annual Reports or that that were submitted by the Company | F11: 5
B12: 2.4.a | C12: Notes | D12: ='2.4.a Notes'!B3 -> Adjustments to Expenses (Notes) | E12: Notes and comments regarding Exhibit 2.4 | F12: 6
B13: 2.5 | C13: Rev & Exp | D13: ='2.5 Rev & Exp'!B3 -> Summary of Revenues and Expenses (Revenue Requirement) | E13: Summarizes the adjusted expenses and shows the revenues required to fund these expenses. | F13: 7
B14: 2.6 | C14: Cap. Reserve | D14: ='2.6 Cap. Reserve'!B3 -> Capital Reserves | E14: Sets the minimum Capital Reserves funding requirements. | F14: 8
B15: 2.7 | C15: Deprec | D15: ='2.7 Deprec'!B3 -> Depreciation Expense & Accumulated Depreciation Reconciliation | E15: Lists the Company's assets and calculates the Depreciation Expense and Accumulated Depreciation | F15: 9
B16: 2.8 | C16: CIAC | D16: ='2.8 CIAC'!B3 -> Contribution in Aid of Construction (CIAC) & Amortization of CIAC | E16: Lists the Company's assets contributed (donated) to the water company, usually by the developer. | F16: 10
B17: 2.9 | C17: Rate Base | D17: ='2.9 Rate Base'!B3 -> Rate Base | E17: Rate base is the value of property, or infrastructure, on which a public utility is permitted to earn a specified rate of return. | F17: 11
B18: 2.10 | C18: Ret on Inv | D18: ='2.10 Ret on Inv'!B3 -> Return on Investment | E18: Calculates the company's return on its investment it has an opportunity to earn. | F18: 12
B19: 2.11 | C19: Taxes | D19: ='2.11 Taxes'!B3 -> Projected Federal & State Income Taxes | E19: Estimates the Company's Federal and State Income Tax liability. | F19: 13
B23: -------------------------------------------------- end ------------------------------------------------------

Sheet 2.2 Rates
A1: back | B1: ='2.1 INDEX'!B1 -> Pineview West Water Company | G1: Exhibit 2.2
B2: ='2.1 INDEX'!B2 -> General Rate Case Increase | G2: ='2.1 INDEX'!E2 -> Docket No.19-2438-01
B3: Rate Schedule | H3: ='2.1 INDEX'!E3 -> 2020-10-16
B5: Fixed Expenses | D5: Reference | E5: Annual Rate | F5: Monthly Rate
A6: 1 | B6: Operation & Maintenance Expenses (System) | D6: [From Exhibit 2.3] | E6: ='2.3 Expense Allocation'!$G$46 -> 76.02334454 | F6: =CEILING((E6/12),0.05) -> 6.35
A7: 2 | B7: Capital Reserve Account Funding | D7: [From Exhibit 2.3] | E7: ='2.3 Expense Allocation'!$G$50 -> 232.9680672 | F7: =CEILING((E7/12),0.05) -> 19.45
A8: 3 | B8: Return on Investment (Profit) | D8: [From Exhibit 2.3] | E8: ='2.3 Expense Allocation'!$G$54 -> 0 | F8: =CEILING((E8/12),0.05) -> 0
A9: 4 | B9: Monthly Fixed System Rate: (Paid by all qualified lots in Service Area) before taxes * | F9: =CEILING((SUM(F6:F8)),1) -> 26
A10: 5 | B10: Taxes | D10: [From Exhibit 2.3] | E10: ='2.3 Expense Allocation'!$G$61 -> 0 | F10: =CEILING((E10/12),0.05) -> 0
A11: 6 | B11: Monthly Fixed System Rate: (Paid by all qualified lots in Service Area) after taxes * | F11: =F9+F10 -> 26 | G11: Monthly Stand-by Rate
A12: 7
A13: 8 | B13: Operation & Maintenance Expenses (System Usage) | D13: [From Exhibit 2.3] | E13: ='2.3 Expense Allocation'!$J$46 -> 441.6166154 | F13: =CEILING((E13/12),0.05) -> 36.85
A14: 9 | B14: Capital Reserve Account Funding | D14: [From Exhibit 2.3] | E14: ='2.3 Expense Allocation'!J50 -> 76.16263736 | F14: =CEILING((E14/12),0.05) -> 6.35
A15: 10 | B15: Return on Investment (Profit) | D15: [From Exhibit 2.3] | E15: ='2.3 Expense Allocation'!$J$54 -> 0 | F15: =CEILING((E15/12),0.05) -> 0
A16: 11 | B16: Monthly Fixed System Usage Rate * | F16: =CEILING((F13+F14+F15),1) -> 44
A17: 12 | B17: Monthly Fixed System Rate | D17: [From Line 7, above] | F17: =F11 -> 26
A18: 13 | B18: Monthly Base Rate for all Connected Customers | F18: =F16+F17 -> 70 | G18: Monthly Base Rate for Connected Customers
A19: 14
A20: 15 | B20: Variable Expenses
A21: 16 | B21: Variable Water Consumption Expenses | D21: [From Exhibit 2.3] | F21: ='2.3 Expense Allocation'!L46 -> 32200
A22: 17 | B22: Total Gallons Used | D22: [From Division of Drinking Water] | F22: ='2.3 Expense Allocation'!M9 -> 4981999
A23: 18 | B23: Variable Water Consumption Rate (Paid for each 1,000 gallons water used) ** | F23: =ROUND(CEILING((F21/F22)*1000,0.5),2) -> 6.5 | G23: Cost per 1,000 gals
A24: 19 | E24: (Line 17 ÷ (Line 18 X 1,000 Gallons))
A25: 20
A26: 21 | B26: Recommended Rate Schedule | E26: Recommended Usage Amounts
A27: 22 | B27: Monthly Rates | E27: Monthly Water Usage Amounts
A28: 23
A29: 24 | B29: Standby Rate | C29: =F11 -> 26 | D29: (From Line 6)
A30: 25 | B30: Base Rate for Connected Customers | C30: =F18 -> 70 | D30: (From Line 13) | E30: 0 | F30: 0
A31: 26 | B31: Tier 1 (Per 1,000 Gallons) | C31: 0 | D31: (First 8,000 gals Inc in Base Rates) | E31: 1 | F31: 8000
A32: 27 | B32: Tier 2 (Per 1,000 Gallons) | C32: =F23 -> 6.5 | D32: (From Line 18) | E32: =F31+1 -> 8001 | F32: =F31+8000 -> 16000
A33: 28 | B33: Tier 3 (Per 1,000 Gallons) ** | C33: =ROUND(CEILING((C32*2),0.5),2) -> 13 | D33: (Line 27 X 2) | E33: =F32+1 -> 16001 | F33: =F32+8000 -> 24000
A34: 29 | B34: Tier 4 (Per 1,000 Gallons) ** | C34: =ROUND(CEILING((C33*1.5),0.5),2) -> 19.5 | D34: (Line 28 X 1.5) | E34: =F33+1 -> 24001 | F34: =F33+8000 -> 32000
A35: 30 | B35: Tier 5 (Per 1,000 Gallons) ** | C35: =ROUND(CEILING((C34*1.5),0.5),2) -> 29.5 | D35: (Line 29 X 1.5) | E35: =F34+1 -> 32001 | F35: > 32,001 gals
A36: 31
A37: 32
A38: 33 | B38: Billing Range
A39: 34 | B39: Monthly Rates | D39: Monthly Water Usage Amounts | F39: Minimum Billing in Tier | G39: Maximum Billing in Tier
A40: 35
A41: 36
A42: 37 | B42: Tier 1 (Per 1,000 Gallons) | C42: =C31 -> 0 | D42: > 0 gals | E42: 8000 | F42: =C30 -> 70 | G42: =ROUND(((E42*C42)/1000)+F42,2) -> 70
A43: 38 | B43: Tier 2 (Per 1,000 Gallons) | C43: =C32 -> 6.5 | D43: =E42+1 -> 8001 | E43: =E42+8000 -> 16000 | F43: =ROUND((D43-E42)*C43/1000+G42,2) -> 70.01 | G43: =ROUND((E43-D43)*C43/1000+C30,2) -> 121.99
A44: 39 | B44: Tier 3 (Per 1,000 Gallons) | C44: =C33 -> 13 | D44: =E43+1 -> 16001 | E44: =E43+8000 -> 24000 | F44: =ROUND((D44-E43)*C44/1000+G43,2) -> 122 | G44: =ROUND((E44-D44)*C44/1000+G43,2) -> 225.98
A45: 40 | B45: Tier 4 (Per 1,000 Gallons) | C45: 19.5 | D45: =E44+1 -> 24001 | E45: =E44+8000 -> 32000 | F45: =ROUND((D45-E44)*C45/1000+G44,2) -> 226 | G45: =ROUND((E45-D45)*C45/1000+G44,2) -> 381.96
A46: 41 | B46: Tier 5 (Per 1,000 Gallons) | C46: 29.5 | D46: =E45+1 -> 32001 | E46: Plus | F46: =ROUND((D46-E45)*C46/1000+G45,2) -> 381.99 | G46: Plus
A47: 42
A48: 43 | B48: * Rounded up to the nearest $1.00
A49: 44 | B49: ** Rounded up to the nearest $.50
A50: 45
A51: 46
A52: 47 | B52: -------------------------------------------------- end ------------------------------------------------------
A53: 48 | B53: End above this line for printing exhibit or for saving as a pdf file
A54: 49 | E54: Table 4
A55: 50 | E55: Sample Billing Amounts Comparing Current to Proposed Billings
A56: 51 | E56: Gallons | F56: Current Billing | G56: Proposed Billing | H56: Increase
A57: 52 | B57: Gallons Used: | C57: 8001 | E57: 8000 | F57: =((E57-7500)/1000*5)+55 -> 57.5 | G57: =ROUND(MAX(0,IF(($E57>=$E$43),(($E$43-$D$43)*$C$43/1000),(($E57-$E$42)*$C$43/1000))),2)+ROUND(MAX(0,IF(($E57>=$E$44),(($E$44-$D$44)*$C$44/1000),(($E57-$E$43)*$C$44/1000))),2)+ROUND(MAX(0,IF(($E57>=$E$45),(($E$45-$D$45)*$C$45/1000),(($E57-$E$44)*$C$45/1000))),2)+ROUND(MAX(0,IF(($E57>=$D38),(($E57-$E$45)*$C$46/1000),(0)))+$C$30,2) -> 70 | H57: =(G57-F57)/F57 -> 0.2173913043
A58: 53 | E58: 9106 | F58: 63.03 | G58: 77.19 | H58: =(G58-F58)/F58 -> 0.2246549262 | I58: 1
A59: 54 | B59: Connected Customers: Base Amount | C59: =C30 -> 70 | E59: 12187 | F59: 78.435 | G59: 97.22 | H59: =(G59-F59)/F59 -> 0.2394976732 | I59: 2
A60: 55 | B60: Amount per Tier 1 | C60: =MAX(0,IF(($C$57>$E42),($E42*$C42/1000),(($C$57-0)*$C42/1000))) -> 0 | E60: 15000 | F60: 92.5 | G60: 115.5 | H60: =(G60-F60)/F60 -> 0.2486486486
A61: 56 | B61: Amount Per Tier 2 | C61: =ROUND(MAX(0,IF(($C$57>=$E43),(($E43-D43)*$C43/1000),(($C$57-E42)*$C43/1000))),2) -> 0.01 | E61: 22500 | F61: 130 | G61: 206.49 | H61: 0.5883846154
A62: 57 | B62: Amount Per Tier 3 | C62: =ROUND(MAX(0,IF(($C$57>=$E44),(($E44-D44)*$C44/1000),(($C$57-$E43)*$C44/1000))),2) -> 0 | E62: 30000 | F62: 167.5 | G62: 342.98 | H62: 1.047641791
A63: 58 | B63: Amount Per Tier 4 | C63: =ROUND(MAX(0,IF(($C$57>=$E45),(($E45-D45)*$C45/1000),(($C$57-$E44)*$C45/1000))),2) -> 0 | E63: 40000 | F63: 217.5 | G63: 617.96 | H63: 1.841195402
A64: 59 | B64: Amount Per Tier 5 | C64: =ROUND(MAX(0,IF(($C$57>=$D46),(($C57-E45)*$C46/1000),(0))),2) -> 0 | E64: 47566 | F64: 255.33 | G64: 841.16 | H64: 2.294403321 | I64: 3
A65: 60 | B65: Total Amount of Bill | C65: =SUM(C59:C64) -> 70.01 | E65: 50000 | F65: 267.5 | G65: 912.96 | H65: 2.412934579
A66: 61 | E66: 60000 | F66: 317.5 | G66: 1207.96 | H66: 2.804598425
A67: 62 | B67: Current Billing Amount | C67: =((C57-7500)/1000)*5+55 -> 57.505 | E67: 184000 | F67: =((E67-7500)/1000*5)+55 -> 937.5 | G67: =ROUND(MAX(0,IF(($E67>=$E$43),(($E$43-$D$43)*$C$43/1000),(($E67-$E$42)*$C$43/1000))),2)+ROUND(MAX(0,IF(($E67>=$E$44),(($E$44-$D$44)*$C$44/1000),(($E67-$E$43)*$C$44/1000))),2)+ROUND(MAX(0,IF(($E67>=$E$45),(($E$45-$D$45)*$C$45/1000),(($E67-$E$44)*$C$45/1000))),2)+ROUND(MAX(0,IF(($E67>=$D50),(($E67-$E$45)*$C$46/1000),(0)))+$C$30,2) -> 4865.96 | H67: =(G67-F67)/F67 -> 4.190357333 | I67: 4
A68: 63 | B68: Percent Increase | C68: =(C65-C67)/C67 -> 0.2174593514
B71: Current Base Rate | C71: 55
B72: Proposed Base Rate | C72: =F18 -> 70
B73: Increase | C73: =C72-C71 -> 15
B74: % increase | C74: =(C72-C71)/C71 -> 0.2727272727
B75: Approx. Rate of Inflation 2009 to 2020 | C75: 0.21
B77: Current Stand-by | C77: 20
B78: Proposed Stand-by | C78: =F11 -> 26
B79: Increase | C79: =C78-C77 -> 6
B80: % increase | C80: =(C78-C77)/C77 -> 0.3
B81: Approx. Rate of Inflation 2009 to 2020 | C81: 0.21

Sheet 2.2.a Notes
A1: back | B1: ='2.1 INDEX'!B1 -> Pineview West Water Company | H1: Exhibit 2.2.a
B2: ='2.1 INDEX'!B2 -> General Rate Case Increase | H2: ='2.1 INDEX'!E2 -> Docket No.19-2438-01
B3: Rate Schedule (Notes) | J3: ='2.1 INDEX'!$E$3 -> 2020-10-16
B5: Comments:
B53: -------------------------------------------------- end ------------------------------------------------------

Sheet 2.3 Expense Allocation
A1: back | B1: ='2.1 INDEX'!B1 -> Pineview West Water Company | L1: Exhibit 2.3
B2: ='2.1 INDEX'!B2 -> General Rate Case Increase | L2: ='2.1 INDEX'!E2 -> Docket No.19-2438-01
B3: Allocation of Annual Expenses and Annual Rates | L3: ='2.1 INDEX'!$E$3 -> 2020-10-16
F5: |------------------------- Fixed Expenses -------------------------| | L5: |-- Variable Expenses --|
F6: 0.2 | I6: 0.8 | L6: 1
B7: Expense Category | D7: Adjusted Total Expenses [From Exh. 2.4] | F7: System Expenses | I7: System Usage Expenses | L7: Water Consumption Expenses
F8: (Paid by ALL Customers) | I8: (Paid by CONNECTED Only)
F9: Total Customers: | G9: =J9+28 -> 119 | I9: Total CONNECTED Customers: | J9: 91 | L9: 2019 Usage: | M9: 4981999
C10: NARUC #
B11: Operation & Maintenance Expenses | F11: Amount | G11: Annual Rate | I11: Amount | J11: .
A12: 1 | B12: ='2.4 Adj. Expenses'!B10 -> Salaries & Wages - Employees & Officers | C12: 601 | D12: ='2.4 Adj. Expenses'!J10 -> 12000 | F12: =D12*F$6 -> 2400 | I12: =D12*I$6 -> 9600
A13: 2 | B13: ='2.4 Adj. Expenses'!B11 -> Purchased Water Ogden City | C13: 601 | D13: ='2.4 Adj. Expenses'!J11 -> 16000 | L13: =D13 -> 16000
A14: 3 | B14: ='2.4 Adj. Expenses'!B12 -> Water Weber Basin Water Rights | C14: 601 | D14: ='2.4 Adj. Expenses'!J12 -> 4700 | F14: =(D14-L14)*F$6 -> 0 | I14: =(D14-L14)*I$6 -> 0 | L14: 4700
A15: 4 | B15: Purchased Power * | C15: 601 | D15: ='2.4 Adj. Expenses'!J13 -> 4000 | I15: =D15 -> 4000
A16: 5 | B16: ='2.4 Adj. Expenses'!B14 -> Chemicals | C16: 601 | D16: ='2.4 Adj. Expenses'!J14 -> 0 | F16: 0 | I16: =D16*I$6 -> 0
A17: 6 | B17: ='2.4 Adj. Expenses'!B15 -> Materials and Supplies | C17: 601 | D17: ='2.4 Adj. Expenses'!J15 -> 0 | F17: 0 | I17: 0
A18: 7 | B18: ='2.4 Adj. Expenses'!B16 -> Purchase Radio Transmitter Water Meters - Culinary | C18: 601 | D18: ='2.4 Adj. Expenses'!J16 -> 6030.89 | F18: =D18*F$6 -> 1206.178 | I18: 4824.712
A19: 8 | B19: ='2.4 Adj. Expenses'!B17 -> Purchase Radio Transmitter Water Meters - Secondary | C19: 601 | D19: ='2.4 Adj. Expenses'!J17 -> 0 | F19: 0 | I19: 0
A20: 9 | B20: ='2.4 Adj. Expenses'!B18 -> Contractual Services - Engineering | C20: 601 | D20: ='2.4 Adj. Expenses'!J18 -> 0 | F20: 0 | I20: 0
A21: 10 | B21: ='2.4 Adj. Expenses'!B19 -> Contractual Services - Accounting | C21: 601 | D21: ='2.4 Adj. Expenses'!J19 -> 2500 | F21: 500 | I21: 2000
A22: 11 | B22: Contractual Services - Legal ** | C22: 601 | D22: ='2.4 Adj. Expenses'!J20 -> 10000 | F22: =(D22-L22)*F$6 -> 1000 | I22: =(D22-L22)*I$6 -> 4000 | L22: 5000
A23: 12 | B23: ='2.4 Adj. Expenses'!B21 -> Contractual Services - Management Fees | C23: 601 | D23: ='2.4 Adj. Expenses'!J21 -> 0 | F23: 0 | I23: 0
A24: 13 | B24: Contractual Services - Testing & Lab Fees ** | C24: 601 | D24: ='2.4 Adj. Expenses'!J22 -> 3000 | F24: =(D24-L24)*F$6 -> 300 | I24: =(D24-L24)*I$6 -> 1200 | L24: 1500
A25: 14 | B25: ='2.4 Adj. Expenses'!B23 -> Contractual Services - Water Sampling | C25: 601 | D25: ='2.4 Adj. Expenses'!J23 -> 0 | F25: 0 | I25: 0
A26: 15 | B26: ='2.4 Adj. Expenses'!B24 -> Contractual Services - Water System Maintenance | C26: 601 | D26: ='2.4 Adj. Expenses'!J24 -> 0 | F26: 0 | I26: 0
A27: 16 | B27: Contractual Services - Water System Repairs ** | C27: 601 | D27: ='2.4 Adj. Expenses'!J25 -> 11500 | F27: =(D27-L27)*F$6 -> 1300 | I27: =(D27-L27)*I$6 -> 5200 | L27: 5000
A28: 17 | B28: ='2.4 Adj. Expenses'!B26 -> Contractual Services - Billing | C28: 601 | D28: ='2.4 Adj. Expenses'!J26 -> 0 | F28: 0 | I28: 0
A29: 18 | B29: ='2.4 Adj. Expenses'!B27 -> Contractual Services - Meter Reading | C29: 601 | D29: ='2.4 Adj. Expenses'!J27 -> 1500 | F29: 300 | I29: 1200
A30: 19 | B30: ='2.4 Adj. Expenses'!B28 -> Contractual Services - Certified Operator | C30: 601 | D30: ='2.4 Adj. Expenses'!J28 -> 6000 | F30: 1200 | I30: 4800
A31: 20 | B31: ='2.4 Adj. Expenses'!B29 -> Contractual Services - Dredge Secondary Pond | C31: 601 | D31: ='2.4 Adj. Expenses'!J29 -> 0 | F31: 0 | I31: 0
A32: 21 | B32: ='2.4 Adj. Expenses'!B30 -> Transportation Expense | D32: ='2.4 Adj. Expenses'!J30 -> 0 | F32: 0 | I32: 0
A33: 22 | B33: ='2.4 Adj. Expenses'!B31 -> Insurance - Vehicle | D33: ='2.4 Adj. Expenses'!J31 -> 0 | F33: 0 | I33: 0
A34: 23 | B34: ='2.4 Adj. Expenses'!B32 -> Insurance - General Liability | D34: ='2.4 Adj. Expenses'!J32 -> 1643 | F34: 328.6 | I34: 1314.4
A35: 24 | B35: ='2.4 Adj. Expenses'!B33 -> Insurance - Worker's Compensation | D35: ='2.4 Adj. Expenses'!J33 -> 0 | F35: 0 | I35: 0
A36: 25 | B36: ='2.4 Adj. Expenses'!B34 -> Regulatory Expense - Rate Case Expense | D36: ='2.4 Adj. Expenses'!J34 -> 0 | F36: 0 | I36: 0
A37: 26 | B37: ='2.4 Adj. Expenses'!B35 -> Regulatory Commission Expense - Other | D37: ='2.4 Adj. Expenses'!J35 -> 0 | F37: 0 | I37: 0
A38: 27 | B38: ='2.4 Adj. Expenses'!B36 -> Water Resource Conservation Expense | D38: ='2.4 Adj. Expenses'!J36 -> 0 | F38: 0 | I38: 0
A39: 28 | B39: ='2.4 Adj. Expenses'!B37 -> Bad Debt Expense | D39: ='2.4 Adj. Expenses'!J37 -> 500 | F39: 100 | I39: 400
A40: 29 | B40: ='2.4 Adj. Expenses'!B38 -> Finance Charges | D40: ='2.4 Adj. Expenses'!J38 -> 0 | F40: 0 | I40: 0
A41: 30 | B41: ='2.4 Adj. Expenses'!B39 -> Miscellaneous Expenses: | D41: ='2.4 Adj. Expenses'!J39 -> 0 | F41: 0 | I41: 0
A42: 31 | B42: ='2.4 Adj. Expenses'!B40 -> Other Misc Expenses NOT Classified | C42: 601 | D42: ='2.4 Adj. Expenses'!J40 -> 1800 | F42: 360 | I42: 1440
A43: 32 | B43: ='2.4 Adj. Expenses'!B41 -> Association / Membership Dues - Fees | C43: 601 | D43: ='2.4 Adj. Expenses'!J41 -> 260 | F43: 52 | I43: 208
A44: 33 | B44: ='2.4 Adj. Expenses'!B42 -> Administrative Expenses | C44: 601 | D44: ='2.4 Adj. Expenses'!J42 -> 0 | F44: 0 | I44: 0
A45: 34 | B45: ='2.4 Adj. Expenses'!B43 -> Postage | C45: 601 | D45: ='2.4 Adj. Expenses'!J43 -> 0 | F45: 0 | I45: 0 | P45: Check Sum
A46: 35 | B46: Total Operation & Maintenance Expenses: | D46: =SUM(D12:D45) -> 81433.89 | F46: =SUM(F12:F45) -> 9046.778 | G46: =F46/$G$9 -> 76.02334454 | I46: =SUM(I12:I45) -> 40187.112 | J46: =I46/$J$9 -> 441.6166154 | L46: =SUM(L12:M45) -> 32200 | P46: =F46+I46+L46 -> 81433.89
A47: 36
A48: 37 | B48: Capital Reserve Account Funding | F48: 0.8 | I48: 0.2 | P48: Check Sum
A49: 38 | B49: Annual Capital Reserve Funding [From Exhibit 2.6] | D49: ='2.6 Cap. Reserve'!E9 -> 34654 | F49: =D49*F48 -> 27723.2 | I49: =D49*I48 -> 6930.8 | P49: =F49+I49+M49 -> 34654
A50: 39 | B50: Total Cap Reserve Account Funding: | D50: =D49 -> 34654 | F50: =F49 -> 27723.2 | G50: =F50/$G$9 -> 232.9680672 | I50: =I49 -> 6930.8 | J50: =I50/$J$9 -> 76.16263736
A51: 40
A52: 41 | B52: Return on Investment (Profit) | F52: 0.2 | I52: 0.8 | P52: Check Sum
A53: 42 | B53: Return on Investment [From Exhibit 2.10] | D53: ='2.10 Ret on Inv'!C10 -> 0 | F53: =D53*F52 -> 0 | I53: =D53*I52 -> 0 | P53: =F53+I53+M53 -> 0
A54: 43 | B54: Total Return on Investment (Profit): | D54: =D53 -> 0 | F54: =F53 -> 0 | G54: =F54/$G$9 -> 0 | I54: =I53 -> 0 | J54: =I54/$J$9 -> 0
A55: 44 | P55: Check Sum
A56: 45 | B56: Total Expenses Before Taxes: | D56: =D46+D50+D54 -> 116087.89 | F56: =F46+F50+F54 -> 36769.978 | I56: =I46+I50+I54 -> 47117.912 | L56: =L46 -> 32200 | P56: =F56+I56+L56 -> 116087.89
A57: 46
A58: 47 | B58: Taxes [From Exhibit 2.11] | F58: 100% | I58: 0%
A59: 48 | B59: Property Tax | C59: 408 | D59: ='2.4 Adj. Expenses'!J55 -> 0 | F59: =D59*F58 -> 0
A60: 49 | B60: Projected Federal and State Income Tax | C60: 409 | D60: ='2.4 Adj. Expenses'!J56 -> 0 | F60: =D60*F58 -> 0
A61: 50 | B61: Total Taxes: | D61: =SUM(D59:D60) -> 0 | F61: =SUM(F59:F60) -> 0 | G61: =F61/$G$9 -> 0
A62: 51
A63: 52 | B63: Total Revenue Requirement: | D63: =D56+D61 -> 116087.89
B65: * This amount is allocated at 100% for System Usage Expenses.
B66: ** These amounts are allocated as a 50/50 split between Fixed and Variable Expenses.
A67: -------------------------------------------------- end ------------------------------------------------------

Sheet 2.3.a Notes
A1: back | B1: ='2.1 INDEX'!B1 -> Pineview West Water Company | H1: Exhibit 2.3.a
B2: ='2.1 INDEX'!B2 -> General Rate Case Increase | H2: ='2.1 INDEX'!E2 -> Docket No.19-2438-01
B3: Expense Allocation (Notes) | H3: ='2.1 INDEX'!$E$3 -> 2020-10-16
B5: Comments:
B54: -------------------------------------------------- end ------------------------------------------------------

Sheet 2.4 Adj. Expenses
A1: back | B1: ='2.1 INDEX'!B1 -> Pineview West Water Company | I1: Exhibit 2.4
B2: ='2.1 INDEX'!B2 -> General Rate Case Increase | I2: ='2.1 INDEX'!E2 -> Docket No.19-2438-01
B3: Adjustments to Expenses | I3: ='2.1 INDEX'!$E$3 -> 2020-10-16
B5: Expense Category | C5: NARUC # | D5: 2018 Expenses per Annual Report | E5: 2019 Expenses per Annual Report | F5: 2018 and 2019 Average Expenses per Annual Report | G5: 2019 Expenses per Rate Case Filing | H5: 2020 Projected Expenses | I5: Division Adjustments | J5: Adjusted
J6: Total
J7: Expense
J8: [To Exhibit 2.3]
B9: Operation & Maintenance Expenses
A10: 1 | B10: Salaries & Wages - Employees & Officers | C10: 601 & 603 | D10: 2600 | E10: 3300 | F10: =(D10+E10)/2 -> 2950 | G10: 3300 | H10: 19980 | I10: -7980 | J10: =H10+I10 -> 12000
A11: 2 | B11: Purchased Water Ogden City | C11: 610 | D11: 16810.86 | E11: 17730.86 | F11: =(D11+E11)/2 -> 17270.86 | G11: 6500 | H11: 12000 | I11: 4000 | J11: =H11+I11 -> 16000
A12: 3 | B12: Water Weber Basin Water Rights | C12: 610 | G12: 4730.86 | H12: 4700 | J12: =H12+I12 -> 4700
A13: 4 | B13: Purchased Power | C13: 615 | D13: 6008.75 | E13: 4934.62 | F13: =(D13+E13)/2 -> 5471.685 | G13: =2548.8+2385.82 -> 4934.62 | H13: 3000 | I13: 1000 | J13: 4000
A14: 5 | B14: Chemicals | C14: 618 | D14: 0 | E14: 0 | J14: 0
A15: 6 | B15: Materials and Supplies | C15: 620 | J15: 0
A16: 7 | B16: Purchase Radio Transmitter Water Meters - Culinary | C16: 620 | H16: =20701.02+9453.43 -> 30154.45 | I16: =H16*0.2*4*-1 -> -24123.56 | J16: 6030.89
A17: 8 | B17: Purchase Radio Transmitter Water Meters - Secondary | C17: 620 | H17: 32500 | I17: -32500 | J17: 0
A18: 9 | B18: Contractual Services - Engineering | C18: 631 | D18: 0 | E18: 0 | J18: 0
A19: 10 | B19: Contractual Services - Accounting | C19: 632 | D19: 2100 | E19: 2100 | F19: =(D19+E19)/2 -> 2100 | G19: 2100 | H19: 2500 | J19: 2500
A20: 11 | B20: Contractual Services - Legal | C20: 633 | D20: 42329.52 | E20: 0 | F20: =(D20+E20)/2 -> 21164.76 | H20: 10000 | J20: =H20+I20 -> 10000
A21: 12 | B21: Contractual Services - Management Fees | C21: 634 | J21: 0
A22: 13 | B22: Contractual Services - Testing & Lab Fees | C22: 635a | D22: 1547 | E22: 4597 | F22: =(D22+E22)/2 -> 3072 | G22: 4597 | H22: 2500 | I22: 500 | J22: 3000
A23: 14 | B23: Contractual Services - Water Sampling | C23: 635b | J23: 0
A24: 15 | B24: Contractual Services - Water System Maintenance | C24: 636 | G24: 3332.57 | J24: 0
A25: 16 | B25: Contractual Services - Water System Repairs | C25: 637 | D25: 10070.1 | E25: 21440.02 | F25: =(D25+E25)/2 -> 15755.06 | G25: 17592.45 | H25: 10000 | I25: 1500 | J25: 11500
A26: 17 | B26: Contractual Services - Billing | C26: 639 | J26: 0
A27: 18 | B27: Contractual Services - Meter Reading | C27: 639 | D27: 1042.5 | E27: 1080 | F27: =(D27+E27)/2 -> 1061.25 | G27: 1080 | H27: 1250 | I27: 250 | J27: 1500
A28: 19 | B28: Contractual Services - Certified Operator | C28: 639 | D28: 3600 | E28: 3600 | F28: =(D28+E28)/2 -> 3600 | G28: 3600 | H28: 6000 | J28: 6000
A29: 20 | B29: Contractual Services - Dredge Secondary Pond | C29: 640 | H29: 31000 | I29: -31000 | J29: 0
A30: 21 | B30: Transportation Expense | C30: 650 | J30: 0
A31: 22 | B31: Insurance - Vehicle | C31: 656 | J31: 0
A32: 23 | B32: Insurance - General Liability | C32: 657 | D32: 1250 | E32: 1250 | F32: =(D32+E32)/2 -> 1250 | G32: 1250 | H32: 1593 | I32: 50 | J32: 1643
A33: 24 | B33: Insurance - Worker's Compensation | C33: 658 | J33: 0
A34: 25 | B34: Regulatory Expense - Rate Case Expense | C34: 666 | J34: 0
A35: 26 | B35: Regulatory Commission Expense - Other | C35: 667 | D35: 0 | E35: 0 | F35: 0 | G35: 0 | J35: 0
A36: 27 | B36: Water Resource Conservation Expense | C36: 668 | J36: 0
A37: 28 | B37: Bad Debt Expense | C37: 670 | D37: 1265.53 | F37: =(D37+E37)/2 -> 632.765 | H37: 500 | J37: 500
A38: 29 | B38: Finance Charges | C38: 427 | G38: 306.42 | J38: 0
A39: 30 | B39: Miscellaneous Expenses: | C39: 675
A40: 31 | B40: Other Misc Expenses NOT Classified | C40: 675 | D40: 1811.29 | E40: 1707.31 | F40: =(D40+E40)/2 -> 1759.3 | G40: 1141.09 | H40: 1700 | I40: 100 | J40: =H40+I40 -> 1800
A41: 32 | B41: Association / Membership Dues - Fees | C41: 675 | G41: 251.22 | H41: 260 | J41: 260
A42: 33 | B42: Administrative Expenses | C42: 675 | J42: 0
A43: 34 | B43: Postage | C43: 675 | J43: 0
A44: 35 | B44: Total Operation & Maintenance Expenses: | D44: =SUM(D10:D43) -> 90435.55 | E44: 61739.81 | F44: 76087.68 | G44: 54716.23 | H44: 169637.45 | I44: -88203.56 | J44: 81433.89
A45: 36
A46: 37 | B46: Annual Capital Reserve Account Funding [From Exhibit 2.6]
A47: 38 | B47: Annual Capital Reserve Account Funding | C47: 403 | D47: 31940 | E47: 31940 | F47: 31940 | G47: 31940 | H47: 35940 | I47: =J47-H47 -> -1286 | J47: =Dep_Exp*-1 -> 34654
A48: 39 | B48: Total Annual Capital Reserve Account Funding: | D48: =SUM(D46:D47) -> 31940 | E48: 31940 | F48: 31940 | G48: 31940 | H48: 35940 | I48: -1286 | J48: =J47 -> 34654
A49: 40
A50: 41 | B50: Return on Investment (Profit) [From Exhibit 2.10]
A51: 42 | B51: Return on Investment | D51: 0 | E51: 0 | F51: 0 | G51: 0 | H51: 0 | I51: 0 | J51: ='2.10 Ret on Inv'!C10 -> 0
A52: 43 | B52: Total Return on Investment (Profit): | D52: =D51 -> 0 | E52: 0 | F52: 0 | G52: 0 | H52: 0 | I52: 0 | J52: 0
A53: 44
A54: 45 | B54: Taxes
A55: 46 | B55: Property Tax | C55: 408 | D55: 0 | E55: 0 | F55: 0 | G55: 0 | H55: 0 | I55: 0 | J55: =E55+I55 -> 0
A56: 47 | B56: Projected Federal and State Income Tax [From Exhibit 2.11] | C56: 409 | D56: 0 | E56: 0 | F56: 0 | G56: 0 | H56: 0 | I56: ='2.11 Taxes'!C21 -> 0 | J56: =E56+I56 -> 0
A57: 48 | B57: Total Taxes: | D57: =SUM(D55:D56) -> 0 | E57: 0 | F57: 0 | G57: 0 | H57: 0 | I57: 0 | J57: 0
A58: 49
A59: 50 | B59: TOTALS: | D59: =D44+D48+D52+D57 -> 122375.55 | E59: 93679.81 | F59: 108027.68 | G59: 86656.23 | H59: 205577.45 | I59: -89489.56 | J59: 116087.89
A62: -------------------------------------------------- end ------------------------------------------------------

Sheet 2.4.a Notes
A1: back | B1: ='2.1 INDEX'!B1 -> Pineview West Water Company | D1: Exhibit 2.4.a
B2: ='2.1 INDEX'!B2 -> General Rate Case Increase | C2: ='2.1 INDEX'!E2 -> Docket No.19-2438-01
B3: Adjustments to Expenses (Notes) | C3: ='2.1 INDEX'!$E$3 -> 2020-10-16
B105: -------------------------------------------------- end ------------------------------------------------------

Sheet 2.5 Rev & Exp
A1: back | B1: ='2.3 Expense Allocation'!B1 -> Pineview West Water Company | F1: Exhibit 2.5
B2: ='2.1 INDEX'!B2 -> General Rate Case Increase | E2: ='2.1 INDEX'!E2 -> Docket No.19-2438-01
B3: Summary of Revenues and Expenses (Revenue Requirement) | F3: ='2.1 INDEX'!$E$3 -> 2020-10-16
C5: Number of | F5: No. Of Months
C6: Customers | E6: Monthly Rate | G6: Annual
C7: [From Exh 2.3] | E7: [From Exh 2.2] | G7: Amount
B8: Revenues
A9: 1 | B9: Connected Customers | C9: ='2.3 Expense Allocation'!J9 -> 91 | E9: ='2.2 Rates'!F9+'2.2 Rates'!F16 -> 70 | F9: 12 | G9: =C9*E9*F9 -> 76440
A10: 2 | B10: Standby Customers | C10: ='2.3 Expense Allocation'!G9-'2.3 Expense Allocation'!J9 -> 28 | E10: ='2.2 Rates'!F9 -> 26 | F10: 12 | G10: =C10*E10*F10 -> 8736
A11: 3 | B11: Total Revenue: | G11: =G9+G10 -> 85176
A12: 4
A13: 5 | B13: Revenues After Taxes (Not Applicable in this case)
A14: 6 | B14: Connected Customers | C14: ='2.3 Expense Allocation'!J9 -> 91 | E14: ='2.2 Rates'!F11+'2.2 Rates'!F16 -> 70 | F14: 12 | G14: =C14*E14*F14 -> 76440
A15: 7 | B15: Standby Customers | C15: ='2.3 Expense Allocation'!G9-'2.3 Expense Allocation'!J9 -> 28 | E15: ='2.2 Rates'!F11 -> 26 | F15: 12 | G15: =C15*E15*F15 -> 8736
A16: 8 | B16: Total Revenue After Taxes: | G16: =G14+G15 -> 85176
A17: 9
A18: 10 | B18: Expenses
A19: 11 | E19: References
A20: 12 | B20: ='2.3 Expense Allocation'!B46 -> Total Operation & Maintenance Expenses: | E20: [From Exhibit 2.4] | G20: ='2.3 Expense Allocation'!D46 -> 81433.89
A21: 13 | B21: Less: Variable Expenses | E21: [From Exhibit 2.3] | G21: ='2.3 Expense Allocation'!L56*-1 -> -32200
A22: 14 | B22: Total Fixed Operation & Maintenance Expenses | G22: =G20+G21 -> 49233.89
A23: 15 | B23: ='2.3 Expense Allocation'!B60 -> Projected Federal and State Income Tax | E23: [From Exhibit 2.11] | G23: ='2.11 Taxes'!C21 -> 0
A24: 16 | B24: ='2.3 Expense Allocation'!B50 -> Total Cap Reserve Account Funding: | E24: [From Exhibit 2.6] | G24: ='2.6 Cap. Reserve'!E9 -> 34654
A25: 17 | B25: ='2.3 Expense Allocation'!B54 -> Total Return on Investment (Profit): | E25: [From Exhibit 2.10] | G25: ='2.10 Ret on Inv'!C10 -> 0
A26: 18 | B26: Total Expenses (Less: Variable Expenses) | G26: =G22+G23+G24+G25 -> 83887.89
A27: 19
A28: 20 | B28: Projected Annual Amount Over/(Under) Earned (line 3 - line 18) | G28: =G11-G26 -> 1288.11
A52: -------------------------------------------------- end ------------------------------------------------------

Sheet 2.6 Cap. Reserve
A1: back | B1: ='2.1 INDEX'!B1 -> Pineview West Water Company | E1: Exhibit 2.6
B2: ='2.1 INDEX'!B2 -> General Rate Case Increase | E2: ='2.1 INDEX'!E2 -> Docket No.19-2438-01
B3: Capital Reserves | C3: ='2.1 INDEX'!$E$3 -> 2020-10-16
C5: A | D5: B | E5: C
B6: Annual Capital Reserve Account Funding | C6: Amount | D6: Adjustment | E6: Adjusted Amount
C7: [From Annual Report] | D7: [C minus A] | E7: [From Exh 2.7]
A8: 1 | B8: Annual Depreciation Expense | C8: 31940 | D8: =E8-C8 -> 2714 | E8: =-Dep_Exp -> 34654
A9: 2 | B9: Total Annual Capital Reserve Account Funding: | E9: =E8 -> 34654
B24: -------------------------------------------------- end ------------------------------------------------------

Sheet 2.7 Deprec
A1: back | B1: ='2.1 INDEX'!B1 -> Pineview West Water Company | K1: Exhibit 2.7
B2: ='2.1 INDEX'!B2 -> General Rate Case Increase | K2: ='2.1 INDEX'!E2 -> Docket No.19-2438-01
B3: Depreciation Expense & Accumulated Depreciation Reconciliation | L3: ='2.1 INDEX'!E3 -> 2020-10-16
B5: Depreciation Rates for Water Utilities Per R746-332 | F5: 2019 Plant Accounts
B6: NARUC Acct # | C6: Account Name | D6: Depreciation Rate Applied | E6: Average Service Life (Years) | F6: Beginning Balance | G6: Division Adjustments | H6: Additions | I6: Balance at end of Year | J6: Prior Year's Accumulated Depreciation per 2019 Annual Report | K6: Annual Depreciation Expense for Year | L6: Accum Depreciation through the end of Year
C7: Depreciable
A8: 1 | B8: 304 | C8: Structures and Improvements | D8: 0.029 | E8: 35 | F8: 0 | I8: =IF(F8+H8+G8=0,0,F8+H8+G8) -> 0 | K8: =ROUND(IF((I8+J8)>(I8*$D8),(I8*$D8*-1),((I8+J8))*-1),0) -> 0 | L8: =J8-K8 -> 0
A9: 2 | B9: 305 | C9: Collecting and Impounding Reservoirs | D9: 0.02 | E9: 50 | I9: 0 | K9: 0 | L9: 0
A10: 3 | B10: 306 | C10: Lakes, Rivers, and Other Intakes | D10: 0.029 | E10: 35 | I10: 0 | K10: 0 | L10: 0
A11: 4 | B11: 307 | C11: Wells and Springs | D11: 0.04 | E11: 25 | F11: 309220.41 | I11: 309220.41 | J11: 182508 | K11: -12369 | L11: =J11-K11 -> 194877
A12: 5 | B12: 308 | C12: Infiltration Galleries and Tunnels | D12: 0.04 | E12: 25 | I12: 0 | K12: 0 | L12: =J12-K12 -> 0
A13: 6 | B13: 309 | C13: Supply Mains | D13: 0.02 | E13: 50 | I13: 0 | K13: 0 | L13: 0
A14: 7 | B14: 310 | C14: Power Generation Equipment | D14: 0.09 | E14: 10 | F14: 0 | I14: 0 | K14: 0 | L14: 0
A15: 8 | B15: 311 | C15: Pumping Equipment | D15: 0.05 | E15: 20 | F15: 141141.29 | I15: 141141.29 | J15: 53680 | K15: -7057 | L15: 60737
A16: 9 | B16: 320 | C16: Water Treatment Equipment | D16: 0.05 | E16: 20 | I16: 0 | K16: 0 | L16: 0
A17: 10 | B17: 330 | C17: Distribution Reservoirs and Standpipes | D17: 0.033 | E17: 30 | F17: 176173 | I17: 176173 | J17: 94812 | K17: -5814 | L17: 100626
A18: 11 | B18: 331 | C18: Transmission and Distribution Mains | D18: 0.02 | E18: 50 | F18: 335000 | I18: 335000 | J18: 85364 | K18: -6700 | L18: 92064
A19: 12 | B19: 333 | C19: Services | D19: 0.033 | E19: 30 | I19: 0 | K19: 0 | L19: 0
A20: 13 | B20: 334 | C20: Meters and Meter Installations | D20: 0.026 | E20: 35 | I20: 0 | K20: 0 | L20: 0
A21: 14 | B21: 335 | C21: Hydrants | D21: 0.024 | E21: 40 | I21: 0 | K21: 0 | L21: 0
A22: 15 | B22: 336 | C22: Backflow Prevention Devices | D22: 0.029 | E22: 35 | I22: 0 | K22: 0 | L22: 0
A23: 16 | B23: 339 | C23: Other Plant and Miscellaneous Equipment | D23: 0.09 | E23: 10 | I23: 0 | K23: 0 | L23: 0
A24: 17 | B24: 340 | C24: Office Furniture and Equipment | D24: 0.048 | E24: 20 | I24: 0 | K24: 0 | L24: 0
A25: 18 | B25: 341 | C25: Transportation Equipment | D25: 0.129 | E25: 7 | I25: 0 | K25: 0 | L25: 0
A26: 19 | B26: 342 | C26: Stores Equipment | D26: 0.05 | E26: 20 | I26: 0 | K26: 0 | L26: 0
A27: 20 | B27: 343 | C27: Tools, Shop and Garage Equipment | D27: 0.063 | E27: 15 | I27: 0 | K27: 0 | L27: 0
A28: 21 | B28: 344 | C28: Laboratory Equipment | D28: 0.067 | E28: 15 | I28: 0 | K28: 0 | L28: 0
A29: 22 | B29: 345 | C29: Power Operated Equipment | D29: 0.09 | E29: 10 | I29: 0 | K29: 0 | L29: 0
A30: 23 | B30: 346 | C30: Communication Equipment | D30: 0.09 | E30: 10 | I30: 0 | J30: 0 | K30: 0 | L30: 0
A31: 24 | D31: 0.09 | E31: 10 | F31: ='2.4 Adj. Expenses'!H16 -> 30154.45 | I31: =IF(F31+H31+G31=0,0,F31+H31+G31) -> 30154.45 | J31: 0 | K31: -2714 | L31: 2714
A32: 25 | B32: 347 | C32: Miscellaneous Equipment | D32: 0.09 | E32: 10 | I32: 0 | K32: 0 | L32: 0
A33: 26 | B33: 348 | C33: Other Tangible Plant | D33: 0.09 | E33: 10 | I33: 0 | K33: 0 | L33: =J33-K33 -> 0
A34: 27 | D34: Total | F34: =SUM(F8:F33) -> 991689.15 | G34: =SUM(G8:G33) -> 0 | H34: 0 | I34: 991689.15 | J34: 416364 | K34: -34654 | L34: 451018
I35: [To Exh 2.9] | K35: [To Exh 2.5] | L35: [To Exh 2.9]
C39: -------------------------------------------------- end ------------------------------------------------------

Sheet 2.8 CIAC
A1: back | B1: ='2.1 INDEX'!B1 -> Pineview West Water Company | K1: Exhibit 2.8
B2: ='2.1 INDEX'!B2 -> General Rate Case Increase | K2: ='2.1 INDEX'!E2 -> Docket No.19-2438-01
B3: Contribution in Aid of Construction (CIAC) & Amortization of CIAC | L3: ='2.1 INDEX'!E3 -> 2020-10-16
B5: Depreciation Rates for Water Utilities Per R746-332 | F5: 2019 Plant Accounts
B6: NARUC Acct # | C6: Account Name | D6: Depreciation Rate Applied | E6: Average Service Life (Years) | F6: Beginning Balance | G6: Division Adjustments (Investments by Company) * | H6: Additions | I6: Balance at end of Year | J6: Prior Year's Accumulated Amortization * | K6: Annual Amortization Expense for Year | L6: Accumulated Amortization through the end of Year
C7: Depreciable
A8: 1 | B8: 304 | C8: Structures and Improvements | D8: 0.029 | E8: 35 | F8: 0 | I8: =IF(F8+H8+G8=0,0,F8+H8+G8) -> 0 | K8: =ROUND(IF((I8+J8)>(I8*$D8),(I8*$D8*-1),((I8+J8))*-1),0) -> 0 | L8: =J8-K8 -> 0
A9: 2 | B9: 305 | C9: Collecting and Impounding Reservoirs | D9: 0.02 | E9: 50 | I9: 0 | K9: 0 | L9: 0
A10: 3 | B10: 306 | C10: Lakes, Rivers, and Other Intakes | D10: 0.029 | E10: 35 | I10: 0 | K10: 0 | L10: 0
A11: 4 | B11: 307 | C11: Wells and Springs | D11: 0.04 | E11: 25 | F11: 309220.41 | G11: -13095 | I11: 296125.41 | J11: =55643+((I11*D11)*10.5) -> 180015.6722 | K11: -11845 | L11: =J11-K11 -> 191860.6722
A12: 5 | B12: 308 | C12: Infiltration Galleries and Tunnels | D12: 0.04 | E12: 25 | I12: 0 | K12: 0 | L12: 0
A13: 6 | B13: 309 | C13: Supply Mains | D13: 0.02 | E13: 50 | I13: 0 | K13: 0 | L13: 0
A14: 7 | B14: 310 | C14: Power Generation Equipment | D14: 0.09 | E14: 10 | F14: 0 | I14: 0 | K14: 0 | L14: 0
A15: 8 | B15: 311 | C15: Pumping Equipment | D15: 0.05 | E15: 20 | F15: 141141.29 | G15: -20176 | I15: 120965.29 | J15: =5792+((I15*D15)*10.5) -> 69298.77725 | K15: -6048 | L15: 75346.77725
A16: 9 | B16: 320 | C16: Water Treatment Equipment | D16: 0.05 | E16: 20 | I16: 0 | K16: 0 | L16: 0
A17: 10 | B17: 330 | C17: Distribution Reservoirs and Standpipes | D17: 0.033 | E17: 30 | F17: 176173 | G17: -15670 | I17: 160503 | J17: =24947+((I17*D17)*10.5) -> 80561.2895 | K17: -5297 | L17: 85858.2895
A18: 11 | B18: 331 | C18: Transmission and Distribution Mains | D18: 0.02 | E18: 50 | F18: 335000 | I18: 335000 | J18: =18900+((I18*D18)*10.5) -> 89250 | K18: -6700 | L18: 95950
A19: 12 | B19: 333 | C19: Services | D19: 0.033 | E19: 30 | I19: 0 | K19: 0 | L19: 0
A20: 13 | B20: 334 | C20: Meters and Meter Installations | D20: 0.026 | E20: 35 | I20: 0 | K20: 0 | L20: 0
A21: 14 | B21: 335 | C21: Hydrants | D21: 0.024 | E21: 40 | I21: 0 | K21: 0 | L21: 0
A22: 15 | B22: 336 | C22: Backflow Prevention Devices | D22: 0.029 | E22: 35 | I22: 0 | K22: 0 | L22: 0
A23: 16 | B23: 339 | C23: Other Plant and Miscellaneous Equipment | D23: 0.09 | E23: 10 | I23: 0 | K23: 0 | L23: 0
A24: 17 | B24: 340 | C24: Office Furniture and Equipment | D24: 0.048 | E24: 20 | I24: 0 | K24: 0 | L24: 0
A25: 18 | B25: 341 | C25: Transportation Equipment | D25: 0.129 | E25: 7 | I25: 0 | K25: 0 | L25: 0
A26: 19 | B26: 342 | C26: Stores Equipment | D26: 0.05 | E26: 20 | I26: 0 | K26: 0 | L26: 0
A27: 20 | B27: 343 | C27: Tools, Shop and Garage Equipment | D27: 0.063 | E27: 15 | I27: 0 | K27: 0 | L27: 0
A28: 21 | B28: 344 | C28: Laboratory Equipment | D28: 0.067 | E28: 15 | I28: 0 | K28: 0 | L28: 0
A29: 22 | B29: 345 | C29: Power Operated Equipment | D29: 0.09 | E29: 10 | I29: 0 | K29: 0 | L29: 0
A30: 23 | B30: 346 | C30: Communication Equipment | D30: 0.09 | E30: 10 | I30: 0 | K30: 0 | L30: 0
A31: 24 | D31: 0.09 | E31: 10 | F31: ='2.7 Deprec'!F31 -> 30154.45 | I31: 30154.45 | J31: 0 | K31: -2714 | L31: 2714
A32: 25 | B32: 347 | C32: Miscellaneous Equipment | D32: 0.09 | E32: 10 | I32: 0 | K32: 0 | L32: 0
A33: 26 | B33: 348 | C33: Other Tangible Plant | D33: 0.09 | E33: 10 | I33: 0 | K33: 0 | L33: 0
A34: 27 | D34: Total | F34: =SUM(F8:F33) -> 991689.15 | G34: =SUM(G8:G33) -> -48941 | H34: 0 | I34: 942748.15 | J34: 419125.7389 | K34: -32604 | L34: 451729.7389
I35: [To Exh 2.9] | L35: [To Exh 2.9]
C49: -------------------------------------------------- end ------------------------------------------------------

Sheet 2.9 Rate Base
A1: back | B1: ='2.1 INDEX'!B1 -> Pineview West Water Company | F1: Exhibit 2.9
B2: ='2.1 INDEX'!B2 -> General Rate Case Increase | E2: ='2.1 INDEX'!E2 -> Docket No.19-2438-01
B3: Rate Base | E3: ='2.1 INDEX'!$E$3 -> 2020-10-16
B5: Description | D5: Adjustments | E5: Division | F5: Reference
C6: 2019 | E6: Proposed
C7: Annual Report | E7: Rate base
A8: 1 | B8: Rate base Summary
A9: 2 | B9: Utility Plant in Service | E9: =E22 -> 48229.26105 | F9: (From Line 15)
A10: 3 | B10: Net Working Capital | E10: =E36 -> 26500.46301 | F10: (From Line 29)
A11: 4 | B11: Total Rate base [Line 2 + Line 3]: | E11: =E9+E10 -> 74729.72406 | F11: [To Exhibit 2.10]
A12: 5
A13: 6
A14: 7 | B14: Utility Plant in Service (Investment Included in Rate base)
A15: 8 | B15: Utility Plant In Service | C15: 374609 | D15: =E15-C15 -> 617080.15 | E15: =Tot_Assets -> 991689.15 | F15: [From Exhibit 2.7]
A16: 9 | B16: Accumulated Depreciation | C16: -262044 | D16: =E16-C16 -> 713062 | E16: =Accum_Dep -> 451018 | F16: [From Exhibit 2.7]
A17: 10 | B17: Net Utility Plant In Service | C17: =SUM(C15:C16) -> 112565 | D17: =SUM(D15:D16) -> 1330142.15 | E17: =SUM(E15:E16) -> 1442707.15
A18: 11
A19: 12 | B19: Contributions In Aid of Construction | C19: =-46549 -> -46549 | D19: =E19-C19 -> -896199.15 | E19: =-'2.8 CIAC'!Tot_Assets -> -942748.15 | F19: [From Exhibit 2.8]
A20: 13 | B20: Accum. Amor. CIAC | C20: 13034 | D20: =E20-C20 -> -464763.7389 | E20: =-'2.8 CIAC'!Accum_Dep -> -451729.7389 | F20: [From Exhibit 2.8]
A21: 14 | B21: Net Contributions In Aid of Construction | C21: =SUM(C19:C20) -> -33515 | D21: =SUM(D19:D20) -> -1360962.889 | E21: =SUM(E19:E20) -> -1394477.889
A22: 15 | B22: Net Utility Plant in Service (Investment Included in Rate Base): | E22: =E17+E21 -> 48229.26105 | F22: (Lines 10 +14)
A23: 16
A24: 17
A25: 18
A26: 19 | B26: Working Capital
A27: 20 | B27: Customer Deposits | D27: 0 | E27: =C27+D27 -> 0 | F27: [Annual Report]
A28: 21
A29: 22 | B29: Cash Working Capital (To allow for 45 days of cash on hand)
A30: 23 | B30: Cash on Hand (Per 2019 Annual Report) | C30: 95425.2 | E30: 149514.31
A31: 24 | B31: Total Operations & Maintenance Expense | C31: ='2.4 Adj. Expenses'!E44 -> 61739.81 | D31: =E31-C31 -> 19694.08 | E31: ='2.4 Adj. Expenses'!J44 -> 81433.89 | F31: [From Exhibit 2.4]
A32: 25 | B32: Less: Purchased Water | C32: ='2.4 Adj. Expenses'!E11*-1 -> -17730.86 | D32: =E32-C32 -> 1730.86 | E32: ='2.4 Adj. Expenses'!J11*-1 -> -16000 | F32: [From Exhibit 2.4]
A33: 26 | B33: Adjusted Total Operations & Maintenance Exp. | C33: =SUM(C30:C32) -> 139434.15 | D33: =SUM(D30:D32) -> 21424.94 | E33: =SUM(E30:E32) -> 214948.2
A34: 27 | B34: Cash Working Capitol (line 25 X (45/365)) | C34: =C33*(45/365) -> 17190.51164 | D34: =D33*(45/365) -> 2641.430959 | E34: =E33*(45/365) -> 26500.46301
A35: 28
A36: 29 | B36: Net Working Capital | C36: =C27+C34 -> 17190.51164 | D36: =D27+D34 -> 2641.430959 | E36: =E27+E34 -> 26500.46301 | F36: (Lines 20 + 27)
A51: -------------------------------------------------- end ------------------------------------------------------

Sheet 2.10 Ret on Inv
A1: back | B1: ='2.1 INDEX'!B1 -> Pineview West Water Company | F1: Exhibit 2.10
B2: ='2.1 INDEX'!B2 -> General Rate Case Increase | F2: ='2.1 INDEX'!E2 -> Docket No.19-2438-01
B3: Return on Investment | D3: ='2.1 INDEX'!$E$3 -> 2020-10-16
B5: Description | C5: Amount | F5: Reference
A6: 1 | B6: Rate Base | C6: ='2.9 Rate Base'!E11 -> 74729.72406 | D6: [From Exhibit 2.9]
A7: 2 | B7: Rate of Return on Investment | C7: 0.1
A8: 3 | B8: Return On Investment [line 1 X line 2] | C8: =ROUND(C6*C7,2) -> 7472.97
A9: 4
A10: 5 | B10: The Company is Non-Profit and receives no return on its investment | C10: 0 | D10: [To Exhibits 2.4 & 2.5]
B26: -------------------------------------------------- end ------------------------------------------------------

Sheet 2.11 Taxes
A1: back | B1: ='2.1 INDEX'!B1 -> Pineview West Water Company | D1: Exhibit 2.11
B2: ='2.1 INDEX'!B2 -> General Rate Case Increase | D2: ='2.1 INDEX'!E2 -> Docket No.19-2438-01
B3: Projected Federal & State Income Taxes | C3: ='2.1 INDEX'!$E$3 -> 2020-10-16
B5: Description | C5: Amount | D5: Reference
B6: Tax Calculation
A7: 1 | B7: Federal Income Tax Rate Used in Calculation | C7: 0.15
A8: 2 | B8: State Income Tax Rate Used in Calculation | C8: 0.05
A9: 3 | B9: Total Tax Rate Used (Line 1 + Line 2) | C9: =C7+C8 -> 0.2
A10: 4
A11: 5 | B11: Tax gross-up factor (Line 3 ÷ (1 - Line 3)) | C11: =C9/(1-C9) -> 0.25
A12: 6
A13: 7 | B13: Projected Total Revenue Before Taxes | C13: ='2.5 Rev & Exp'!G11 -> 85176 | D13: [From Exhibit 2.5]
A14: 8 | B14: Less: Projected Operation & Maintenance Expenses | C14: =-'2.5 Rev & Exp'!G20-'2.5 Rev & Exp'!G21 -> -49233.89 | D14: [From Exhibit 2.5]
A15: 9 | B15: Less: Depreciation Expense (for income tax purposes) | C15: =Dep_Exp -> -34654 | D15: [From Exhibit 2.7]
A16: 10 | B16: Less: Property Taxes | C16: =-'2.4 Adj. Expenses'!J55 -> 0 | D16: [From Exhibit 2.4]
A17: 11 | B17: Projected Net Taxable Income | C17: =SUM(C13:C16) -> 1288.11
A18: 12
A19: 13 | B19: Estimated Federal and State Income Tax Obligation (Line 5 times line 11) | C19: =ROUND(C17*C11,0) -> 322
A20: 14
A21: 15 | B21: Company is Non-Profit and owes no Income Taxes | C21: 0 | D21: [To Exhibit 2.3]
A38: -------------------------------------------------- end ------------------------------------------------------

Sheet Formating (hidden)
C2: 1000 | E2: _($* #,##0.00_);[Red]_($* (#,##0.00);_($* "0.00"_);_(@_) | H2: 1000 | J2: _($* #,##0.00_);[Red]_($* (#,##0.00);_(* "-"??_);_(@_)
C3: -1000 | H3: -1000
C4: 0 | H4: 0
C7: 1000 | E7: _($* #,##0_);[Red]_($* (#,##0);_($* "0"_);_(@_) | H7: 1000 | J7: _($* #,##0_);[Red]_($* (#,##0);_(* "-"??_);_(@_)
C8: -1000 | H8: -1000
C9: 0 | H9: 0
C12: 1000 | H12: 1000 | J12: _(* #,##0.00_);[Red]_* (#,##0.00);_(* "-"??_);_(@_)
C13: -1000 | E13: (Currency with no symbol) | H13: -1000
C14: 0 | H14: 0
C17: 1000 | E17: _(* #,##0_);[Red]_(* (#,##0);_$* "0"_);_(@_) | H17: 1000 | J17: _(* #,##0_);[Red]_(* (#,##0);_$* "-"??_);_(@_)
C18: -1000 | E18: (Currency with no symbol) | H18: -1000
C19: 0 | H19: 0
C62: 1000 | E62: _($* #,##0.00_);[Red]_($* (#,##0.00);_($* "0.00"_);_(@_) | H62: 1000 | J62: _($* #,##0.00_);[Red]_($* (#,##0.00);_(* "-"??_);_(@_)
C63: -1000 | H63: -1000
C64: 0 | H64: 0
C67: 1000 | E67: _($* #,##0_);[Red]_($* (#,##0);_($* "0"_);_(@_) | H67: 1000 | J67: _($* #,##0_);[Red]_($* (#,##0);_(* "-"??_);_(@_)
C68: -1000 | H68: -1000
C69: 0 | H69: 0
C72: 1000 | H72: 1000 | J72: _(* #,##0.00_);[Red]_* (#,##0.00);_(* "-"??_);_(@_)
C73: -1000 | E73: (Currency with no symbol) | H73: -1000
C74: 0 | H74: 0
C77: 1000 | E77: _(* #,##0_);[Red]_(* (#,##0);_$* "0"_);_(@_) | H77: 1000 | J77: _(* #,##0_);[Red]_(* (#,##0);_$* "-"??_);_(@_)
C78: -1000 | E78: (Currency with no symbol) | H78: -1000
C79: 0 | H79: 0

Sheet Macro (hidden)
B7: System | C7: ='2.2 Rates'!F11 -> 26
B8: User | C8: ='2.2 Rates'!F18 -> 70
B9: Variable | C9: ='2.2 Rates'!F23 -> 6.5
